bitfinex/quotes_BTCUSD_20240718
["timestamp","ask_amount","ask_price","bid_price","bid_amount"]
[1721317070511,0.31600574,63847.0,63846.0,0.03292774]
[1721317070777,0.005,63847.0,63846.0,0.03292774]
[1721317071006,0.003,63847.0,63846.0,0.03292774]
[1721317071231,0.156635,63843.0,63842.0,0.002794]
[1721317071478,0.002,63847.0,63846.0,0.03292774]
[1721317071999,0.002,63847.0,63844.0,0.15663]
[1721317072000,0.303719,63849.0,63848.0,0.03292774]
[1721317072236,0.616958,63849.0,63848.0,0.03292774]
[1721317072691,0.460339,63849.0,63846.0,0.03292774]
[1721317072918,0.002,63847.0,63844.0,0.03292774]
[1721317073142,0.469887,63845.0,63844.0,0.03292774]
[1721317073387,0.156627,63846.0,63845.0,0.03292774]
[1721317074089,0.46988,63846.0,63845.0,0.03292774]
[1721317075341,0.47088,63846.0,63845.0,0.03215458]
[1721317076063,0.786133,63846.0,63839.0,0.002794]
[1721317076311,0.469887,63845.0,63844.0,0.03215458]
[1721317076539,0.159627,63846.0,63845.0,0.03215458]
[1721317076759,0.47288,63846.0,63845.0,0.03215458]
[1721317077320,0.47188,63846.0,63845.0,0.03215458]
[1721317077792,0.47288,63846.0,63845.0,0.03215458]
[1721317078035,0.47188,63846.0,63845.0,0.03215458]
[1721317078508,0.786133,63846.0,63845.0,0.03215458]
[1721317078744,0.003,63846.0,63843.0,0.03215458]
[1721317078988,0.469894,63844.0,63843.0,0.03215458]
[1721317079213,0.783157,63844.0,63843.0,0.03215458]
[1721317079441,0.003,63846.0,63845.0,0.03215458]
[1721317079709,0.472879,63846.0,63845.0,0.03215458]
[1721317079949,0.2065495,63846.0,63835.0,0.03215458]
[1721317080175,0.2065495,63846.0,63834.0,0.03215458]
[1721317080176,0.156653,63835.0,63834.0,0.03215458]
[1721317080656,0.156651,63836.0,63835.0,0.03215458]
[1721317080908,0.61596,63835.0,63834.0,0.00688998]
[1721317081173,0.61596,63835.0,63818.0,0.31339]
[1721317081174,0.156658,63833.0,63826.0,0.03215458]
[1721317081425,0.156658,63833.0,63815.0,0.313403]
[1721317081426,0.62435674,63833.0,63832.0,0.05806758]
[1721317081682,1.41669471,63833.0,63832.0,0.05806758]
[1721317082155,1.35099074,63833.0,63832.0,0.025913]
[1721317083382,0.146,63835.0,63832.0,0.05806758]
[1721317083610,0.00834,63852.0,63843.0,0.03215458]
[1721317083611,0.236331,63844.0,63843.0,0.03215458]
[1721317083865,0.549594,63844.0,63843.0,0.03215458]
[1721317084114,0.236331,63844.0,63843.0,0.03215458]
[1721317084373,0.00083,63849.0,63843.0,0.03215458]
[1721317084374,0.156628,63846.0,63843.0,0.03215458]
[1721317084605,0.00083,63849.0,63848.0,0.03215458]
[1721317084814,0.157449,63849.0,63848.0,0.03215458]
[1721317085546,0.00083,63849.0,63844.0,0.03215458]
[1721317085777,0.156631,63844.0,63843.0,0.03315458]
[1721317086478,0.313247,63848.0,63845.0,0.03215458]
[1721317086724,0.00583,63849.0,63848.0,0.03215458]
[1721317088441,0.00583,63849.0,63848.0,1.28288632]
[1721317088716,0.00583,63849.0,63848.0,1.53307578]
[1721317088930,0.00834,63852.0,63851.0,0.81522658]
[1721317089159,0.00834,63852.0,63851.0,1.7601912]
[1721317089382,0.00834,63852.0,63851.0,2.1234202]
[1721317089629,0.00834,63852.0,63851.0,2.24055666]
[1721317089917,0.00834,63852.0,63851.0,2.1234202]
[1721317090144,0.00834,63852.0,63851.0,2.240557]
[1721317090367,0.00834,63852.0,63851.0,2.0734202]
[1721317090593,0.00834,63852.0,63851.0,2.11041321]
[1721317090823,0.00934,63852.0,63851.0,2.25445331]
[1721317091080,0.00934,63852.0,63851.0,1.61006632]
[1721317091355,0.00934,63852.0,63851.0,2.13735033]
[1721317091584,0.00934,63852.0,63851.0,2.23099469]
[1721317091804,0.00934,63852.0,63851.0,2.23099589]
[1721317092032,0.00934,63852.0,63851.0,2.18099589]
[1721317092269,0.00934,63852.0,63851.0,2.15758647]
[1721317092495,0.01034,63852.0,63851.0,1.44087725]
[1721317092743,0.01034,63852.0,63851.0,1.3576473]
[1721317092972,0.01034,63852.0,63851.0,1.44088405]
[1721317093203,0.01034,63852.0,63851.0,1.48769329]
[1721317093443,0.01034,63852.0,63851.0,0.99760832]
[1721317093682,0.01034,63852.0,63851.0,1.31083732]
[1721317093911,0.01034,63852.0,63851.0,0.99760832]
[1721317094164,0.01034,63852.0,63851.0,0.84322658]
[1721317095241,0.01034,63852.0,63851.0,0.21676858]
[1721317095449,0.01034,63852.0,63851.0,0.99760832]
[1721317095686,0.01034,63852.0,63851.0,1.31083732]
[1721317095976,0.01034,63852.0,63851.0,2.13409532]
[1721317096237,0.01034,63852.0,63851.0,2.14410888]
[1721317096465,0.01034,63852.0,63851.0,2.07390982]
[1721317096745,0.01034,63852.0,63851.0,2.07389756]
[1721317096973,0.01034,63852.0,63851.0,1.27443956]
[1721317097211,0.01034,63852.0,63851.0,0.06015458]
[1721317097954,1.1406461,63852.0,63851.0,0.028]
[1721317098216,1.40380574,63852.0,63851.0,0.028]
[1721317098483,0.77735774,63852.0,63851.0,0.028]
[1721317098735,0.15114,63852.0,63851.0,0.03215458]
[1721317098962,0.313248,63847.0,63846.0,0.03215458]
[1721317099201,0.313248,63847.0,63844.0,0.03215458]
[1721317099202,0.156629,63845.0,63844.0,0.03215458]
[1721317099429,0.156629,63845.0,63832.0,0.000913]
[1721317099430,0.156631,63844.0,63843.0,0.03215458]
[1721317099657,0.313258,63845.0,63844.0,0.03215458]
[1721317099658,0.15663,63845.0,63844.0,0.03215458]
[1721317099891,0.156631,63844.0,63843.0,0.03215458]
[1721317100639,0.61874574,63852.0,63851.0,0.03215458]
[1721317100640,0.282752,63852.0,63851.0,0.03215458]
[1721317100867,0.282752,63852.0,63841.0,0.156639]
[1721317100868,0.469843,63851.0,63850.0,0.03215458]
[1721317101105,0.464843,63851.0,63850.0,0.03215458]
[1721317101335,0.46761074,63851.0,63844.0,0.03215458]
[1721317101581,0.156631,63844.0,63843.0,0.03215458]
[1721317101816,0.469894,63844.0,63843.0,0.03615458]
[1721317102308,0.156631,63844.0,63843.0,0.03615458]
[1721317102833,0.13314,63852.0,63851.0,0.03215458]
[1721317103067,0.289752,63852.0,63851.0,0.03215458]
[1721317103299,0.13314,63852.0,63851.0,0.03215458]
[1721317103527,0.289752,63852.0,63851.0,0.03215458]
[1721317103982,0.13314,63852.0,63851.0,0.03215458]
[1721317104243,0.446364,63852.0,63850.0,0.03215458]
[1721317104503,0.446364,63852.0,63835.0,0.313306]
[1721317104504,0.2574137,63852.0,63846.0,0.03215458]
[1721317104728,0.156631,63845.0,63843.0,0.03615458]
[1721317104968,0.313248,63847.0,63843.0,0.03615458]
[1721317104969,0.156625,63847.0,63846.0,0.03215458]
[1721317105455,0.156622,63848.0,63846.0,0.03215458]
[1721317105674,0.13614,63852.0,63850.0,0.03215458]
[1721317105899,0.12914,63852.0,63851.0,0.10932937]
[1721317106133,0.12914,63852.0,63851.0,0.03215458]
[1721317107073,0.003,63852.0,63851.0,0.18876858]
[1721317107305,0.00834,63856.0,63853.0,0.18876358]
[1721317107536,0.00834,63856.0,63853.0,0.81520158]
[1721317107836,0.00834,63856.0,63853.0,1.12842058]
[1721317108088,0.00834,63856.0,63853.0,1.28280232]
[1721317110748,0.15324,63854.0,63853.0,0.03715458]
[1721317111193,0.00834,63854.0,63853.0,0.03715458]
[1721317111412,0.00834,63854.0,63853.0,0.04015458]
[1721317111882,0.00834,63854.0,63853.0,1.04358332]
[1721317112108,0.00834,63854.0,63853.0,1.35680232]
[1721317114503,0.00834,63854.0,63853.0,0.04015458]
[1721317115001,0.08464,63854.0,63853.0,0.04015458]
[1721317116515,0.302647,63854.0,63853.0,0.008]
[1721317116767,1.45294814,63854.0,63853.0,0.008]
[1721317117012,1.86616214,63854.0,63853.0,0.008]
[1721317117529,0.24604,63854.0,63853.0,0.008]
[1721317117750,0.402647,63854.0,63853.0,0.003]
[1721317118035,0.402647,63854.0,63853.0,0.001]
[1721317118036,0.406647,63854.0,63853.0,0.001]
[1721317118261,0.25004,63854.0,63853.0,0.03315458]
[1721317118498,0.11234,63854.0,63853.0,0.03315458]
[1721317118721,0.10834,63854.0,63853.0,0.03215458]
[1721317118959,0.01034,63854.0,63853.0,0.03215458]
[1721317119147,0.11034,63854.0,63853.0,0.03215458]
[1721317119463,0.313188,63860.0,63853.0,0.03215458]
[1721317119466,0.312718,63956.0,63865.0,0.782892]
[1721317119652,0.07717479,63967.0,63901.0,0.156492]
[1721317119653,0.046561,63902.0,63901.0,0.156492]
[1721317119874,0.13960708,63945.0,63901.0,0.156492]
[1721317119875,0.1164404,63951.0,63950.0,0.156372]
[1721317120183,0.1164404,63951.0,63950.0,0.78186]
[1721317120383,0.0144276,63957.0,63941.0,0.04670979]
[1721317120613,0.0144276,63957.0,63950.0,0.04670077]
[1721317120839,0.0144276,63957.0,63949.0,0.07005116]
[1721317121080,0.0144276,63957.0,63930.0,0.05]
[1721317121081,0.1652,63948.0,63934.0,0.11675194]
[1721317121319,0.0632,63949.0,63925.0,0.09340155]
[1721317121320,0.5765,63935.0,63932.0,0.11675194]
[1721317121554,0.5765,63935.0,63917.0,0.04670077]
[1721317121555,0.156434,63925.0,63917.0,0.04670077]
[1721317121803,0.156434,63925.0,63912.0,0.002794]
[1721317121804,0.5,63927.0,63918.0,0.002794]
[1721317122033,0.5,63927.0,63918.0,0.04670077]
[1721317122315,0.5,63927.0,63919.0,0.04949477]
[1721317122511,0.5,63927.0,63922.0,0.04670077]
[1721317122741,0.1,63926.0,63923.0,0.002794]
[1721317122984,0.156435,63924.0,63923.0,0.002794]
[1721317123432,0.156438,63923.0,63922.0,0.002794]
[1721317123433,0.469314,63923.0,63922.0,0.002794]
[1721317123684,0.312871,63924.0,63918.0,0.04749754]
[1721317123685,0.156435,63924.0,63918.0,0.04749754]
[1721317123935,0.1,63926.0,63920.0,0.04649754]
[1721317123936,0.156434,63925.0,63920.0,0.04649754]
[1721317124166,0.1,63926.0,63921.0,0.002794]
[1721317124167,0.156437,63924.0,63921.0,0.002794]
[1721317124492,0.156437,63924.0,63919.0,0.04649754]
[1721317124493,0.156437,63924.0,63920.0,0.002794]
[1721317124662,0.1,63926.0,63920.0,0.002794]
[1721317124663,0.156438,63923.0,63920.0,0.002794]
[1721317124900,0.1,63926.0,63920.0,0.002794]
[1721317124901,0.156441,63922.0,63920.0,0.002794]
[1721317125136,0.156443,63921.0,63920.0,0.002794]
[1721317125419,0.002,63924.0,63916.0,0.06974632]
[1721317125420,0.002,63924.0,63919.0,0.04929154]
[1721317125654,0.1,63926.0,63923.0,0.0464134]
[1721317125881,0.1,63926.0,63924.0,0.0492074]
[1721317126116,0.469299,63925.0,63924.0,0.002794]
[1721317126345,0.469299,63925.0,63923.0,0.002794]
[1721317126346,0.469306,63924.0,63923.0,0.002794]
[1721317126576,0.003,63925.0,63916.0,0.11603943]
[1721317126577,0.15645,63918.0,63916.0,0.04641577]
[1721317126849,0.1,63926.0,63917.0,0.34981899]
[1721317127098,0.156438,63923.0,63922.0,0.11600127]
[1721317127330,0.312868,63925.0,63914.0,0.05]
[1721317127555,0.312868,63925.0,63904.0,0.312966]
[1721317127556,0.312871,63924.0,63922.0,0.06958579]
[1721317127784,0.312868,63925.0,63922.0,0.06958579]
[1721317127785,0.156438,63923.0,63922.0,0.06958579]
[1721317128014,0.469314,63923.0,63922.0,0.34698396]
[1721317128556,0.469314,63923.0,63922.0,0.46300412]
[1721317128843,0.469314,63923.0,63922.0,0.46293908]
[1721317129060,0.469314,63923.0,63922.0,0.47093908]
[1721317129549,0.469314,63923.0,63922.0,0.4709664]
[1721317129774,0.469314,63923.0,63922.0,0.45074908]
[1721317130012,0.469314,63923.0,63922.0,0.45074685]
[1721317130239,0.469314,63923.0,63922.0,0.35498815]
[1721317130466,0.469314,63923.0,63922.0,0.35798815]
[1721317130713,0.156438,63923.0,63922.0,0.35798815]
[1721317131246,0.469314,63923.0,63922.0,0.35498815]
[1721317131473,0.469314,63923.0,63922.0,0.35698815]
[1721317131697,0.469314,63923.0,63922.0,0.34998815]
[1721317131927,0.469314,63923.0,63922.0,0.34698815]
[1721317132149,0.469314,63923.0,63922.0,0.35198815]
[1721317132627,0.31287,63925.0,63922.0,0.35199974]
[1721317132854,0.156438,63923.0,63922.0,0.005]
[1721317133096,0.15644,63922.0,63921.0,0.13908202]
[1721317133317,0.15644,63922.0,63921.0,0.34698491]
[1721317133556,0.156437,63924.0,63921.0,0.34698491]
[1721317133779,0.156438,63923.0,63922.0,0.34977891]
[1721317134003,0.156438,63923.0,63922.0,0.34698491]
[1721317134229,0.2946543,63923.0,63922.0,0.34698491]
[1721317134452,0.2946543,63923.0,63922.0,0.35198491]
[1721317134453,0.156438,63923.0,63922.0,0.35198491]
[1721317134937,0.256432,63926.0,63922.0,0.35198491]
[1721317135223,0.1,63926.0,63925.0,0.07717479]
[1721317135381,0.312838,63931.0,63925.0,0.07717479]
[1721317135382,0.269282,63928.0,63925.0,0.4241597]
[1721317135629,0.15643,63926.0,63925.0,0.07717479]
[1721317135858,0.312803,63938.0,63925.0,0.95987952]
[1721317136080,0.156413,63934.0,63933.0,0.06946899]
[1721317136330,0.469235,63934.0,63933.0,0.34694309]
[1721317136570,0.156413,63933.0,63932.0,0.07717479]
[1721317136807,0.0628,63939.0,63932.0,0.4241137]
[1721317136808,0.15641,63935.0,63932.0,0.4241137]
[1721317137045,0.15641,63935.0,63934.0,0.09258756]
[1721317137377,0.469227,63935.0,63934.0,0.06944067]
[1721317137556,0.469227,63935.0,63932.0,0.09258756]
[1721317137557,0.0628,63939.0,63932.0,0.06944067]
[1721317137782,0.156411,63934.0,63933.0,0.06942101]
[1721317138011,0.156411,63934.0,63931.0,0.09258756]
[1721317138012,0.46924,63933.0,63932.0,0.06942101]
[1721317138474,0.782067,63933.0,63932.0,0.06942101]
[1721317138704,0.375599,63939.0,63932.0,0.06940099]
[1721317138950,0.312813,63936.0,63934.0,0.04626677]
[1721317139070,0.156413,63934.0,63931.0,0.04626677]
[1721317139297,0.156416,63932.0,63931.0,0.04626677]
[1721317139990,0.312826,63934.0,63933.0,0.001]
[1721317139991,0.004,63934.0,63933.0,0.001]
[1721317140232,0.004,63934.0,63933.0,0.07817479]
[1721317140448,0.312795,63940.0,63933.0,0.12442609]
[1721317140672,0.156408,63935.0,63934.0,0.002794]
[1721317140899,0.469225,63935.0,63934.0,0.002794]
[1721317141109,0.469233,63934.0,63933.0,0.002794]
[1721317141390,0.469233,63934.0,63929.0,0.14654673]
[1721317141391,0.156413,63933.0,63932.0,0.002794]
[1721317141616,0.156416,63932.0,63931.0,0.002794]
[1721317141831,0.469248,63932.0,63931.0,0.002794]
[1721317142048,0.46927,63929.0,63927.0,0.04624796]
[1721317142292,0.46927,63929.0,63916.0,0.13874388]
[1721317142293,0.782117,63929.0,63928.0,0.002794]
[1721317142518,0.469314,63923.0,63922.0,0.002794]
[1721317142795,0.469314,63923.0,63915.0,0.1156199]
[1721317142796,0.469321,63922.0,63921.0,0.002794]
[1721317143002,0.15646,63914.0,63913.0,0.04624796]
[1721317143233,0.156459,63915.0,63910.0,0.09624796]
[1721317143474,0.15646,63914.0,63911.0,0.002794]
[1721317143768,0.156455,63916.0,63910.0,0.052794]
[1721317143962,0.08627028,64039.0,63917.0,0.05]
[1721317143963,0.156436,63924.0,63917.0,0.05]
[1721317144388,0.156436,63924.0,63911.0,0.89150465]
[1721317144389,0.002,63932.0,63911.0,0.89150465]
[1721317144390,0.002,63932.0,63924.0,0.05]
[1721317144457,0.002,63932.0,63929.0,0.07717479]
[1721317145752,0.312773,63945.0,63929.0,0.07717479]
[1721317145754,0.065,63949.0,63931.0,0.05]
[1721317145813,0.065,63949.0,63930.0,0.16234133]
[1721317145815,0.065,63949.0,63936.0,0.07717479]
[1721317145816,0.156397,63940.0,63936.0,0.07717479]
[1721317145872,0.21938174,63949.0,63936.0,0.07717479]
[1721317145874,0.156403,63938.0,63936.0,0.07717479]
[1721317146015,0.312768,63946.0,63936.0,0.07717479]
[1721317146040,0.156401,63938.0,63936.0,0.07717479]
[1721317146248,0.21938174,63949.0,63936.0,0.07717479]
[1721317146249,0.312756,63948.0,63936.0,0.07717479]
[1721317147566,0.21938174,63949.0,63944.0,0.07717479]
[1721317147567,0.312768,63945.0,63944.0,0.07717479]
[1721317147606,0.065,63949.0,63944.0,0.07717479]
[1721317147609,0.15638,63947.0,63944.0,0.07717479]
[1721317147651,0.312753,63949.0,63944.0,0.07717479]
[1721317147653,0.156382,63946.0,63944.0,0.07717479]
[1721317147719,0.312729,63954.0,63944.0,0.07717479]
[1721317147765,0.0144276,63957.0,63944.0,0.07717479]
[1721317147805,0.469152,63945.0,63944.0,0.07717479]
[1721317147941,0.469152,63945.0,63936.0,0.07717479]
[1721317147942,0.312768,63945.0,63939.0,0.05]
[1721317148146,0.156384,63945.0,63943.0,0.07717479]
[1721317148289,0.312761,63947.0,63943.0,0.07717479]
[1721317148290,0.15638,63947.0,63943.0,0.07717479]
[1721317148448,0.02964036,63957.0,63943.0,0.07717479]
[1721317148449,0.312715,63956.0,63947.0,0.05]
[1721317148657,0.0144276,63957.0,63955.0,0.05]
[1721317149299,0.0144276,63957.0,63950.0,0.07717479]
[1721317149300,0.0144276,63957.0,63956.0,0.05]
[1721317149728,0.0144276,63957.0,63951.0,0.312735]
[1721317149729,0.0144276,63957.0,63955.0,0.05]
[1721317149943,0.0144276,63957.0,63956.0,0.05312685]
[1721317150154,0.0144276,63957.0,63956.0,0.20750852]
[1721317150371,0.0144276,63957.0,63956.0,0.20438174]
[1721317150803,0.0144276,63957.0,63956.0,0.36073874]
[1721317151159,0.0144276,63957.0,63956.0,1.3470593]
[1721317151250,0.0144276,63957.0,63956.0,1.34705559]
[1721317151749,0.4663469,63969.0,63966.0,0.05]
[1721317151952,0.46304871,63968.0,63963.0,0.05]
[1721317152170,0.4663469,63969.0,63957.0,0.002794]
[1721317152382,0.312672,63965.0,63957.0,0.052794]
[1721317152599,0.312672,63965.0,63959.0,0.05]
[1721317152600,0.156336,63965.0,63959.0,0.05]
[1721317153069,0.4663469,63969.0,63959.0,0.05]
[1721317153293,0.4663469,63969.0,63963.0,0.05]
[1721317153516,0.4663469,63969.0,63961.0,0.05]
[1721317153517,0.156337,63964.0,63961.0,0.05]
[1721317153742,0.4663469,63969.0,63956.0,0.05]
[1721317154003,0.4663469,63969.0,63957.0,0.002794]
[1721317154004,0.469057,63958.0,63957.0,0.002794]
[1721317154203,0.469057,63958.0,63954.0,0.20465682]
[1721317154204,0.156352,63958.0,63956.0,0.002794]
[1721317154410,0.156352,63958.0,63956.0,0.004]
[1721317154629,0.312697,63960.0,63957.0,0.002794]
[1721317154848,0.312639,63972.0,63957.0,0.052794]
[1721317155068,0.156341,63963.0,63956.0,0.05]
[1721317155280,0.156351,63959.0,63957.0,0.002794]
[1721317155493,0.156347,63961.0,63957.0,0.002794]
[1721317155722,0.156348,63960.0,63957.0,0.002794]
[1721317155976,0.156347,63961.0,63957.0,0.002794]
[1721317156204,0.156347,63961.0,63958.0,0.05]
[1721317156380,0.7789979,63969.0,63958.0,0.05]
[1721317156381,0.4663469,63969.0,63968.0,0.05]
[1721317156614,0.6226729,63969.0,63965.0,0.05]
[1721317156817,0.6226729,63969.0,63967.0,0.05]
[1721317156818,0.4663469,63969.0,63967.0,0.05]
[1721317157018,0.4663469,63969.0,63964.0,0.05]
[1721317157181,0.6226719,63969.0,63964.0,0.05]
[1721317157384,0.6226719,63969.0,63963.0,0.05]
[1721317157667,0.6226719,63969.0,63964.0,0.05]
[1721317157882,0.6226719,63969.0,63962.0,0.05]
[1721317157883,0.156336,63965.0,63962.0,0.05]
[1721317158101,0.156336,63965.0,63960.0,0.05]
[1721317158313,0.4663469,63969.0,63960.0,0.05]
[1721317158529,0.156339,63964.0,63960.0,0.05]
[1721317158941,0.156339,63964.0,63957.0,0.001]
[1721317158942,0.312675,63965.0,63958.0,0.05]
[1721317159148,0.4663469,63969.0,63954.0,0.07211088]
[1721317159149,0.312693,63961.0,63954.0,0.05]
[1721317159405,0.15635,63959.0,63957.0,0.05]
[1721317159596,0.15438174,63968.0,63958.0,0.05]
[1721317159823,0.4663469,63969.0,63958.0,0.05]
[1721317159824,0.156331,63967.0,63964.0,0.05]
[1721317160042,0.156329,63968.0,63967.0,0.05]
[1721317160254,0.4663469,63969.0,63967.0,0.05]
[1721317160479,0.156334,63966.0,63962.0,0.05]
[1721317160696,0.156333,63966.0,63960.0,0.05]
[1721317160907,0.156333,63966.0,63962.0,0.05]
[1721317161125,0.4663469,63969.0,63959.0,0.05]
[1721317161343,0.4663469,63969.0,63960.0,0.014]
[1721317161344,0.156339,63964.0,63960.0,0.014]
[1721317161606,0.15634,63963.0,63960.0,0.014]
[1721317161830,0.156339,63964.0,63960.0,0.064]
[1721317162047,0.156345,63961.0,63960.0,0.014]
[1721317162235,0.4663469,63969.0,63958.0,0.12717479]
[1721317162236,0.156348,63960.0,63958.0,0.12717479]
[1721317162917,0.156348,63960.0,63959.0,0.05]
[1721317163358,0.312674,63965.0,63960.0,0.05]
[1721317163359,0.156345,63961.0,63960.0,0.05]
[1721317163575,0.156345,63961.0,63960.0,0.09639666]
[1721317163794,0.312684,63963.0,63958.0,0.12717479]
[1721317163795,0.15635,63959.0,63958.0,0.12717479]
[1721317164038,0.15635,63959.0,63958.0,0.19677032]
[1721317164251,0.15635,63959.0,63958.0,0.12717479]
[1721317164469,0.15635,63959.0,63958.0,0.59994336]
[1721317164677,0.312699,63960.0,63958.0,0.59994336]
[1721317164678,0.156347,63960.0,63958.0,0.59994336]
[1721317164895,0.156347,63960.0,63959.0,0.39677577]
[1721317165109,0.469042,63960.0,63959.0,0.39677577]
[1721317165322,0.469042,63960.0,63959.0,0.34677577]
[1721317165540,0.8737231,63960.0,63959.0,0.34677577]
[1721317166208,0.781737,63960.0,63959.0,0.34677577]
[1721317166714,0.781737,63960.0,63959.0,0.35877577]
[1721317167011,0.4663469,63969.0,63959.0,0.48595056]
[1721317167200,0.4663469,63969.0,63968.0,0.12717479]
[1721317167417,0.4663469,63969.0,63968.0,0.39678774]
[1721317167640,0.4663469,63969.0,63968.0,0.46307627]
[1721317167641,1.2479739,63969.0,63968.0,0.46307627]
[1721317167854,0.9353229,63969.0,63968.0,0.46307627]
[1721317168132,0.9353229,63969.0,63968.0,0.51307627]
[1721317168395,0.4663469,63969.0,63968.0,0.51307627]
[1721317168617,0.4663469,63969.0,63968.0,0.55116948]
[1721317168857,0.4663469,63969.0,63968.0,0.70749748]
[1721317169110,0.4663469,63969.0,63968.0,0.79367227]
[1721317169501,0.4663469,63969.0,63968.0,0.63734427]
[1721317169753,0.4663469,63969.0,63968.0,0.89117379]
[1721317169968,0.4663469,63969.0,63968.0,0.05]
[1721317170192,0.4663469,63969.0,63968.0,0.39670857]
[1721317170880,0.4663469,63969.0,63968.0,1.02007431]
[1721317171126,0.4663469,63969.0,63968.0,2.47660429]
[1721317171338,0.4663469,63969.0,63968.0,2.60641792]
[1721317171556,0.4663469,63969.0,63968.0,2.61141792]
[1721317172093,0.4663469,63969.0,63968.0,2.05835236]
[1721317172306,0.4663469,63969.0,63968.0,1.29822673]
[1721317172546,0.4663469,63969.0,63968.0,1.3860514]
[1721317172740,0.4663469,63969.0,63968.0,1.10357431]
[1721317172996,0.4663469,63969.0,63968.0,0.57109031]
[1721317173221,0.4663469,63969.0,63968.0,0.5850631]
[1721317173444,0.4663469,63969.0,63968.0,0.47365324]
[1721317173662,0.4663469,63969.0,63968.0,0.084]
[1721317173874,0.4663469,63969.0,63968.0,0.034]
[1721317174091,0.4663469,63969.0,63968.0,0.084]
[1721317174531,0.4663469,63969.0,63968.0,0.13049058]
[1721317174786,0.4663469,63969.0,63968.0,0.70736574]
[1721317175020,0.4663469,63969.0,63968.0,1.12378999]
[1721317175231,0.4663469,63969.0,63968.0,0.80513399]
[1721317175477,0.4663469,63969.0,63968.0,0.36070974]
[1721317175706,0.4673469,63969.0,63968.0,0.37470974]
[1721317175900,0.4673469,63969.0,63968.0,0.23238174]
[1721317176142,0.4663469,63969.0,63968.0,0.21838174]
[1721317176388,0.4663469,63969.0,63968.0,0.11049479]
[1721317176389,0.4673469,63969.0,63968.0,0.11049479]
[1721317176620,0.98305759,63969.0,63968.0,0.014]
[1721317176859,1.75075959,63969.0,63968.0,0.014]
[1721317177090,1.75075959,63969.0,63968.0,0.028]
[1721317177339,1.90514133,63969.0,63968.0,0.028]
[1721317177775,2.21779233,63969.0,63968.0,0.028]
[1721317178020,2.26411727,63969.0,63968.0,0.028]
[1721317178479,2.26311727,63969.0,63968.0,0.014]
[1721317178700,2.26911727,63969.0,63968.0,0.015]
[1721317178921,1.95646627,63969.0,63968.0,0.015]
[1721317179151,0.6286719,63969.0,63968.0,0.065]
[1721317179420,0.4813469,63969.0,63968.0,0.066]
[1721317179907,0.4813469,63969.0,63968.0,0.052]
[1721317180089,0.4813469,63969.0,63968.0,0.518984]
[1721317180090,0.4663469,63969.0,63968.0,0.518984]
[1721317180558,0.4753469,63969.0,63968.0,0.520984]
[1721317181030,0.4753469,63969.0,63968.0,0.114614]
[1721317181265,0.4753469,63969.0,63968.0,0.051]
[1721317181979,0.4663469,63969.0,63968.0,0.052]
[1721317182190,0.4693469,63969.0,63968.0,0.052]
[1721317182429,0.4663469,63969.0,63968.0,0.052]
[1721317182854,0.4663469,63969.0,63968.0,0.058]
[1721317183353,0.4663469,63969.0,63968.0,0.36870974]
[1721317183580,0.4663469,63969.0,63968.0,0.99402174]
[1721317183814,0.4663469,63969.0,63968.0,0.058]
[1721317185604,0.4663469,63969.0,63968.0,0.214328]
[1721317186338,0.4663469,63969.0,63968.0,0.212328]
[1721317186983,0.4663469,63969.0,63968.0,0.216328]
[1721317187922,0.4663469,63969.0,63968.0,0.06]
[1721317188171,1.29460859,63969.0,63968.0,0.01]
[1721317189320,0.98195759,63969.0,63968.0,0.01]
[1721317189589,0.98195759,63969.0,63968.0,0.056]
[1721317189825,0.9353229,63969.0,63968.0,0.056]
[1721317190040,0.9353229,63969.0,63968.0,0.05]
[1721317190470,0.4693469,63969.0,63968.0,0.05]
[1721317190996,0.4693469,63969.0,63968.0,0.518984]
[1721317191185,0.4693469,63969.0,63968.0,0.206328]
[1721317191398,0.4693469,63969.0,63968.0,0.05]
[1721317191882,0.4663469,63969.0,63968.0,0.206328]
[1721317192097,0.4693469,63969.0,63968.0,0.206328]
[1721317192630,0.4693469,63969.0,63968.0,1.06319653]
[1721317193271,0.4663469,63969.0,63968.0,0.36070974]
[1721317193489,0.4663469,63969.0,63968.0,0.67336574]
[1721317193702,0.4663469,63969.0,63968.0,0.36470974]
[1721317193943,0.4663469,63969.0,63968.0,0.67736574]
[1721317194383,0.4663469,63969.0,63968.0,0.99002174]
[1721317194625,0.4663469,63969.0,63968.0,0.98602174]
[1721317194858,0.4663469,63969.0,63968.0,0.99202174]
[1721317195983,0.4663469,63969.0,63968.0,1.16862681]
[1721317196243,0.4663469,63969.0,63968.0,0.99202174]
[1721317196472,0.4663469,63969.0,63968.0,0.99602174]
[1721317197599,0.4663469,63969.0,63968.0,0.68336574]
[1721317197843,0.4663469,63969.0,63968.0,0.06]
[1721317198301,0.4663469,63969.0,63968.0,0.01]
[1721317198610,0.4663469,63969.0,63968.0,0.06]
[1721317199270,0.4663469,63969.0,63968.0,0.216328]
[1721317199470,0.4663469,63969.0,63968.0,0.056]
[1721317199683,0.4663469,63969.0,63968.0,0.05]
[1721317200121,0.4693469,63969.0,63968.0,0.05]
[1721317200388,0.4663469,63969.0,63968.0,0.207241]
[1721317200569,0.4663469,63969.0,63968.0,0.050913]
[1721317200787,0.4663469,63969.0,63968.0,0.67827874]
[1721317200788,0.4671769,63969.0,63968.0,0.67827874]
[1721317201025,0.4671769,63969.0,63968.0,0.36562274]
[1721317201448,0.4671769,63969.0,63968.0,0.36862274]
[1721317201696,0.4671769,63969.0,63968.0,0.36462274]
[1721317201917,0.4671769,63969.0,63968.0,0.053913]
[1721317203047,0.4671769,63969.0,63968.0,0.059913]
[1721317203478,0.4666769,63969.0,63968.0,0.053913]
[1721317203698,0.4666769,63969.0,63968.0,0.52095074]
[1721317203937,0.4666769,63969.0,63968.0,1.12893474]
[1721317204142,0.4666769,63969.0,63968.0,1.61840985]
[1721317204448,0.4666769,63969.0,63968.0,1.94899967]
[1721317204579,0.4666769,63969.0,63968.0,1.63634367]